Cogmind - Beta 15 @@@ ROGUE MODE // 2025.05.14 @ 15:17:38 Player: Peawet Result: Destroyed by XA-I3K(j) with Overtuned Pulse Rifle Performance ------------- Evolutions (0) 0 Regions Visited (3) 600 Robots Destroyed (3) 15 Value Destroyed (14) 14 Prototype IDs (15) 300 Alien Tech Used (0) 0 Bonus (1366) 1366 TOTAL SCORE: 2295 Bonus ------- Follower Combat Kills 566 Registered with UFD 300 Met Optimus in HQ 500 Cogmind --------- Core Integrity 0/250 Matter 300/300 Energy 143/290 System Corruption 2% Temperature Cool (12) Movement Core (450) Ox8 Location -7/Scraptown Parts ------- > --- POWER (1) -------- Improved Deuterium Engine > --- PROPULSION (2) --- (None) > --- UTILITY (2) ------ Small Storage Unit Makeshift Light Armor Plating > --- WEAPON (2) ------- Makeshift Sword DM-GVY's Chainsaw > --- INVENTORY (8) ---- Scrap Suit Spectral Analyzer Makeshift Light Armor Plating Makeshift Hacking Suite Tech Extrapolator CPS Tube (2) Peak State ------------ > --- POWER ------------ (None) > --- PROPULSION ------- VSS Leg VSS Leg > --- UTILITY ---------- Small Storage Unit A0-MCA's Component Scanner > --- WEAPON ----------- Makeshift Sword DM-GVY's Chainsaw > --- INVENTORY -------- Scrap Suit Spectral Analyzer Makeshift Light Armor Plating Makeshift Light Armor Plating Makeshift Hacking Suite Tech Extrapolator CPS Tube [Rating: 32] Favorites ----------- Power Deuterium Engine Engine Deuterium Engine Propulsion Aluminum Leg Leg Aluminum Leg Utility Small Storage Unit Device Subdweller Optics Storage Small Storage Unit Processor A0-MCA's Component Scanner Protection Improved Light Armor Plating Weapon Makeshift Sword Energy Gun Small Laser Energy Cannon Improved EM Pulse Cannon Ballistic Gun Light Assault Rifle Slashing Weapon Makeshift Sword Build | -11 -10 -10 -7 ------- Run | Yrd Mat Sub Scr Slots Evolved . | . . . . Power . | . . . . Propulsion . | . . . . Utility . | . . . . Weapon . | . . . . Parts Attached 27 | 7 . 3 17 Power 5 | 1 . . 4 Engine 5 | 1 . . 4 Core . | . . . . Reactor . | . . . . Propulsion 8 | 2 . . 6 Treads . | . . . . Leg 8 | 2 . . 6 Wheel . | . . . . Hover . | . . . . Flight . | . . . . Utility 7 | 2 . 1 4 Device 2 | 1 . 1 . Storage 1 | 1 . . . Processor 1 | . . . 1 Hackware . | . . . . Protection 3 | . . . 3 Artifact . | . . . . Weapon 7 | 2 . 2 3 Energy Gun 2 | 2 . . . Energy Cannon 1 | . . . 1 Ballistic Gun 1 | . . 1 . Ballistic Cannon . | . . . . Launcher . | . . . . Special Weapon . | . . . . Impact Weapon . | . . . . Slashing Weapon 3 | . . 1 2 Piercing Weapon . | . . . . Special Melee Weapon . | . . . . Unidentified Prototypes . | . . . . Parts Lost 6 | . . . 6 Power 2 | . . . 2 Propulsion 2 | . . . 2 Utility 1 | . . . 1 Weapon 1 | . . . 1 Highest Loss Streak 4 | . . . 4 To Critical Strikes . | . . . . Average Backups 5 | 1 3 4 6 Power . | . 1 1 . Propulsion . | . 1 2 . Utility 2 | . . . 3 Weapon 1 | . 1 1 1 Tool/Special . | . . . . Unused Backups 14 | . . . 14 Power 1 | . . . 1 Propulsion 2 | . . . 2 Utility 7 | . . . 7 Weapon 3 | . . . 3 Tool/Special 1 | . . . 1 Average Slot Usage (%) 97 | . 100 100 96 Engine 13 | . 14 14 13 Leg 27 | . 28 28 27 Device 5 | . 14 14 2 Storage 14 | . 14 14 14 Processor 4 | . . . 6 Protection 1 | . . . 2 Energy Gun 5 | . 28 26 . Energy Cannon 7 | . . . 9 Ballistic Gun 1 | . . 1 1 Slashing Weapon 12 | . . . 16 Peak Build Rating 32 | 9 9 11 32 Average Rating 18 | 6 9 8 21 On Entrance 7 | . 9 9 11 Naked Turns . | . . . . Heaviest Build 26 | 14 14 15 26 Greatest Support 38 | 20 20 20 38 Greatest Overweight (x) 8 | 2 . . 8 Average Overweight (x) . | . . . . Largest Inventory Capacity 8 | 8 8 8 8 Average Capacity 7 | 7 8 8 8 Most Carried 8 | 2 4 5 8 Average Carried 6 | 1 3 4 7 Final Capacity 8 | 8 8 8 8 Final Carried 7 | 2 4 5 7 Class Distribution -------------------- 92% | Mutant 7% | Scavenger-Mutant Dominant Class ---------------- Mutant | -10/Materials Mutant | -10/Subcaves Mutant | -7/Scraptown Resources | -11 -10 -10 -7 ----------- Run | Yrd Mat Sub Scr Matter Collected 467 | 183 87 10 187 Remotely . | . . . . Salvage Created 123 | 123 . . . Parts 5 | 5 . . . Haulers Intercepted . | . . . . Recyclers Shooed . | . . . . Parts Field Recycled . | . . . . Retrieved Matter . | . . . . Parts Self-Destructed 3 | . . 3 . Prevented . | . . . . Kills | -11 -10 -10 -7 ------- Run | Yrd Mat Sub Scr Combat Hostiles Destroyed . | . . . . Classes Destroyed 3 | 3 . . . Worker 1 | 1 . . . Tunneler 1 | 1 . . . Recycler 1 | 1 . . . Best Kill Streak 2 | 2 . . . Combat Bots Only . | . . . . Max Kills in Single Turn 1 | 1 . . . Gunslinging . | . . . . Exploded . | . . . . Melee . | . . . . Uniques/NPCs Destroyed . | . . . . Combat | -11 -10 -10 -7 -------- Run | Yrd Mat Sub Scr Hostile Shots Fired 67 | . 2 2 63 Missed 20 | . . 1 19 Hits 47 | . 2 1 44 Melee 7 | . . . 7 Projectile 40 | . 2 1 37 Critical Strikes 5 | . 1 . 4 Damage Taken 1047 | . 31 36 980 Core 251 | . . . 251 Absorbed by Shields . | . . . . Core Remaining (%) 100 | 100 . . . Volleys Fired 26 | 6 5 14 1 Largest 2 | 2 2 2 1 Hottest 80 | 80 80 80 69 Shots Fired 44 | 12 10 21 1 Gun 43 | 12 10 21 . Cannon 1 | . . . 1 Launcher . | . . . . Special . | . . . . Kinetic 7 | . . 7 . Thermal 18 | 6 5 7 . Explosive . | . . . . Electromagnetic 19 | 6 5 7 1 Robot Hit Streak 7 | 7 . 1 2 Robot Miss Streak 1 | 1 . 1 . Penetration Max . | . . . . Secondary Targets . | . . . . Shots Hit Robots 11 | 7 . 1 3 Core Hits 5 | 4 1 . . Critical Kills . | . . . . Critical Parts Destroyed . | . . . . Critical Strikes 2 | . . . 2 Sever 2 | . . . 2 Melee Attacks 9 | . . . 9 Impact . | . . . . Slashing 9 | . . . 9 Piercing . | . . . . Sneak Attacks . | . . . . Combat Hostiles . | . . . . Follow-up Attacks . | . . . . Damage Inflicted 206 | 101 10 10 85 Guns 111 | 101 . 10 . Cannons 18 | . . . 18 Explosions . | . . . . Melee 67 | . . . 67 Ramming 10 | . 10 . . Kinetic . | . . . . Thermal 45 | 35 . 10 . Explosive . | . . . . Electromagnetic 84 | 66 . . 18 Impact . | . . . . Slashing 67 | . . . 67 Piercing . | . . . . Highest Corruption 2 | . . . 2 Average Corruption 1 | . . . 1 Corruption Purged . | . . . . Corruption Blocked . | . . . . Effects 5 | . . . 5 Message Errors 2 | . . . 2 Heat Flow Errors 1 | . . . 1 Energy Discharges 1 | . . . 1 Data Loss (major) 1 | . . . 1 Overload Shots . | . . . . Overflow Damage . | . . . . Projectiles . | . . . . Explosions . | . . . . Melee . | . . . . Knockbacks . | . . . . Impact . | . . . . Kinetic . | . . . . Secondary . | . . . . Self-Inflicted Damage . | . . . . Shots . | . . . . Rammed . | . . . . Targets Rammed 5 | . 5 . . Kicked 5 | . 5 . . Crushed . | . . . . Highest Temperature 92 | 54 81 . 92 Average Temperature 33 | 29 47 . 24 Received Heat Transfer 463 | . 36 18 409 Siege Activations . | . . . . Martial Activations . | . . . . Shielding Activations . | . . . . Robots Disrupted . | . . . . Combat Hostiles . | . . . . Robots Corrupted . | . . . . Combat Hostiles . | . . . . Parts Fried . | . . . . Impact Corruptions . | . . . . Robots Melted . | . . . . Combat Hostiles . | . . . . Parts Melted . | . . . . Heat Transferred 100 | 75 . 25 . Parts Sabotaged . | . . . . Parts Stolen . | . . . . Parts Stripped . | . . . . Power Chain Reactions . | . . . . Alert | -11 -10 -10 -7 ------- Run | Yrd Mat Sub Scr Maximum Alert Level . | . . . . Low Security (%) 100 | 100 100 . . Level 1 . | . . . . Level 2 . | . . . . Level 3 . | . . . . Level 4 . | . . . . Level 5 . | . . . . High Security . | . . . . Max Security . | . . . . Peak Influence 10 | 10 6 . . Initial 6 | . 6 . . Average . | . . . . Influence Increases 15 | 15 . . . Destroy 0b10 Robot/NC 15 | 15 . . . Influence Decreases 15 | 5 10 . . Entered New Map 4 | . 4 . . Time Decay 11 | 5 6 . . Squads Dispatched . | . . . . Investigation . | . . . . Extermination . | . . . . Reinforcement . | . . . . Assault . | . . . . Garrison . | . . . . Intercept . | . . . . Searches Triggered . | . . . . Construction Impeded . | . . . . Haulers Reinforced . | . . . . Active Scanning Responses . | . . . . Cargo Convoy Interrupts . | . . . . Stealth | -11 -10 -10 -7 --------- Run | Yrd Mat Sub Scr Distress Signals . | . . . . Communications Jammed . | . . . . Distress Signals . | . . . . Times Spotted 50 | . 4 2 44 Peak Tracking Total 9 | . 2 2 9 Tactical Retreats . | . . . . Traps | -11 -10 -10 -7 ------- Run | Yrd Mat Sub Scr Traps Triggered . | . . . . Indirectly . | . . . . Trap Hack Attempts . | . . . . Triggered . | . . . . Disarmed . | . . . . Reprogrammed . | . . . . Reused . | . . . . Traps Extracted . | . . . . Installed . | . . . . Triggered . | . . . . Machines | -11 -10 -10 -7 ---------- Run | Yrd Mat Sub Scr Machines Disabled 5 | . . . 5 Max in Single Turn 1 | . . . 1 Machines Repaired . | . . . . Machines Dismantled . | . . . . Machines Sabotaged . | . . . . Overloaded Fab Kills . | . . . . Hacking | -11 -10 -10 -7 --------- Run | Yrd Mat Sub Scr Machines Accessed 7 | . . 1 6 Terminals . | . . . . Fabricators . | . . . . Repair Stations . | . . . . Recycling Units . | . . . . Scanalyzers . | . . . . Garrison Access . | . . . . Total Hacks 45 | . . 4 41 Successful 45 | . . 4 41 Failed . | . . . . Catastrophic . | . . . . Database Lockouts . | . . . . Manual . | . . . . Terminals . | . . . . Fabricators . | . . . . Repair Stations . | . . . . Recycling Units . | . . . . Scanalyzers . | . . . . Garrison Access . | . . . . Terminal Hacks 45 | . . 4 41 Record 37 | . . 4 33 Robot Analysis 8 | . . . 8 Fabricator Hacks . | . . . . Repair Station Hacks . | . . . . Recycling Unit Hacks . | . . . . Scanalyzer . | . . . . Garrison Access Hacks . | . . . . Unauthorized Hacks . | . . . . Terminals . | . . . . Fabricators . | . . . . Repair Stations . | . . . . Recycling Units . | . . . . Scanalyzers . | . . . . Garrison Access . | . . . . Data Cores Recovered . | . . . . Used . | . . . . Hacking Detections . | . . . . Full Trace Events . | . . . . Feedback Events . | . . . . Feedback Blocked . | . . . . Robot Schematics Acquired . | . . . . Robots Built . | . . . . Authchips . | . . . . Time . | . . . . Total Robot Build Rating . | . . . . Part Schematics Acquired . | . . . . Parts Built . | . . . . Authchips . | . . . . Time . | . . . . Total Part Build Rating . | . . . . Parts Repaired . | . . . . Time . | . . . . Parts Recycled . | . . . . Recycled Matter . | . . . . Retrieved Matter . | . . . . Retrieved Components . | . . . . Parts Scanalyzed . | . . . . Part Schematics Acquired . | . . . . Parts Damaged . | . . . . Bothacking | -11 -10 -10 -7 ------------ Run | Yrd Mat Sub Scr Used RIF Installer . | . . . . Robots Hacked . | . . . . Non-combat . | . . . . Combat . | . . . . Robot Hacks Applied . | . . . . Relay Couplers Released . | . . . . Fabnet Peak Effective % . | . . . . Robots Rewired . | . . . . Allies Hacked . | . . . . Hacks Repelled . | . . . . Allies | -11 -10 -10 -7 -------- Run | Yrd Mat Sub Scr Total Allies 3 | . . . 3 Largest Group 1 | . . . 1 Highest-Rated Group 61 | . . . 61 Highest-Rated Ally 61 | . . . 61 Total Orders 2 | . . . 2 GUARD 2 | . . . 2 Ally Attacks 45 | . . . 45 Total Damage 1510 | . . . 1510 Kills 17 | . . . 17 Allies Corrupted . | . . . . Allies Melted 11 | . . . 11 Intel | -11 -10 -10 -7 ------- Run | Yrd Mat Sub Scr Active Infowar (turns) 1245 | 44 282 415 504 Optics 689 | . . 185 504 Terrain 556 | 44 282 230 . Robot Analysis Total 8 | . . . 8 Derelict Logs Recovered . | . . . . Drone Launches . | . . . . Drone Recoveries . | . . . . Exploration | -11 -10 -10 -7 ------------- Run | Yrd Mat Sub Scr Turns Passed 3487 | 111 282 415 2679 Spaces Moved 1953 | 46 128 223 1556 Core 15 | 10 . . 5 Treads . | . . . . Legs 1938 | 36 128 223 1551 Wheels . | . . . . Hover . | . . . . Flight . | . . . . Fastest Speed 50 | 50 120 120 90 Average Speed 150 | 111 120 120 157 Slowest Speed 450 | 150 120 120 450 Overloaded Moves . | . . . . Propulsion Burnouts . | . . . . Robots Hopped . | . . . . Potential Cave-ins . | . . . . Cave-ins Triggered . | . . . . Exploration Rate (%) 30 | 4 20 15 83 Regions Visited 3 Branch Regions 2 Pre-discovered Areas . | . . . . Known Exits Taken . | . . . . Unknown Exits Taken 3 | 1 1 1 . Scrap Searched 3 | . . . 3 Spaces Dug . | . . . . Terrain Destroyed . | . . . . Melee . | . . . . Projectile . | . . . . AOE . | . . . . Terrain Rammed . | . . . . Walls Destroyed . | . . . . Machines Disabled . | . . . . Actions | -11 -10 -10 -7 --------- Run | Yrd Mat Sub Scr Total 2454 | 90 245 349 1770 Wait 395 | 30 106 109 150 Move 1950 | 45 127 222 1556 Hop . | . . . . Pick Up 21 | 2 2 1 16 Fast Attach 11 | 7 . . 4 Attach 2 | . . . 2 Detach . | . . . . Swap 15 | . . 3 12 Drop 20 | . . . 20 Fire 26 | 6 5 14 1 Melee 9 | . . . 9 Ram . | . . . . Kick 5 | . 5 . . Crush . | . . . . Escape Stasis . | . . . . Rewire . | . . . . Trap . | . . . . Miscellaneous . | . . . . Route ------- -11/Scrapyard -10/Materials (discovered 3 exits: [*Mat] / [*Min] / *Sub) -10/Subcaves -7/Scraptown (discovered 2 exits: [*Fac x2]) History --------- Turn | Location | Event 11 | -11/Scrapyard | Discovered new exit (range 16) 112 | -11/Scrapyard | Entered Materials 113 | -10/Materials | Met a group of wandering Federalists 223 | -10/Materials | Discovered new exit (range 13) 260 | -10/Materials | Discovered new exit (range 4) 303 | -10/Materials | Build established: Mutant 349 | -10/Materials | Discovered new exit (range 5) 394 | -10/Materials | Entered Subcaves 394 | -10/Subcaves | Accompanied by 2 allies 395 | -10/Subcaves | Continued accompanying wandering Federalists (6) 526 | -10/Subcaves | Visited Clippyterm 572 | -10/Subcaves | Learned Research machine intel 611 | -10/Subcaves | Ambushed by Subdwellers from Twisted Machinery 643 | -10/Subcaves | Wandering Federalist uncovered a shortcut to Scraptown 809 | -10/Subcaves | Entered Scraptown 1124 | -7/Scraptown | Heard Great Nut preacher, LISTEN AND RECITE! 1144 | -7/Scraptown | Discovered new exit (range 5) 1329 | -7/Scraptown | Visited Bundlers 1502 | -7/Scraptown | Visited Symbiants 1557 | -7/Scraptown | Visited IN-MT5's Study 1662 | -7/Scraptown | Visited The Evicted 1981 | -7/Scraptown | Visited Fellowship of the Rings 2043 | -7/Scraptown | Visited UFD Registry 2043 | -7/Scraptown | Registered with UFD as "Bulletspawn" 2148 | -7/Scraptown | Visited Botcube Research 2170 | -7/Scraptown | Botcube activated 2182 | -7/Scraptown | Botcube completed mutation into legged form, armed with 1 cannon, 1 launcher. 2230 | -7/Scraptown | Visited Scrap Suit Storage 2240 | -7/Scraptown | Found Scrap Suit 2243 | -7/Scraptown | Found Scrap Suit 2289 | -7/Scraptown | Visited A0-MCA Data Center 2301 | -7/Scraptown | Given a C+ rating by A0-MCA 2304 | -7/Scraptown | Found A0-MCA's Component Scanner 2345 | -7/Scraptown | Visited Curators Association 2411 | -7/Scraptown | Visited Analyses Database 2622 | -7/Scraptown | Discovered new exit (range 5) 2778 | -7/Scraptown | Met Optimus 2778 | -7/Scraptown | Accepted into 0bPrime 2909 | -7/Scraptown | Visited Infowarlord's Domain 2927 | -7/Scraptown | Found Spectral Analyzer 3012 | -7/Scraptown | Civil war broke out across Scraptown 3084 | -7/Scraptown | Lost 4 allies 3126 | -7/Scraptown | Botcube activated 3140 | -7/Scraptown | Botcube completed mutation into core form, armed with 2 guns. 3215 | -7/Scraptown | Optimus destroyed in the chaos of civil war 3311 | -7/Scraptown | Botcube activated 3329 | -7/Scraptown | Botcube completed mutation into legged form, armed with 2 guns. 3345 | -7/Scraptown | Lost 22 allies 3439 | -7/Scraptown | Found DM-GVY's Chainsaw 3475 | -7/Scraptown | Core integrity fell below 50% 3480 | -7/Scraptown | Core integrity fell below 20% 3488 | -7/Scraptown | Destroyed by XA-I3K(j) with Overtuned Pulse Rifle Last Messages --------------- 03460_ Enclosure breached. 03463_ 3D-731(b) Lgt. Treads severed. 03463_ A0-MCA's Component Scanner destroyed. 03463_ System corrupted by crushing effect (+1). 03464_ VSS Leg destroyed. 03466_ 3D-731(b) Imp. Deuterium Engine severed. 03466_ Knocked back. 03469_ Acquired Imp. Deuterium Engine. 03470_ VSS Leg destroyed. 03470_ Critical hit (Burn: +37). 03471_ 3D-731(b) switches sides. 03474_ Imp. Deuterium Engine destroyed. 03475_ HS=PY:7,UKUJ#JQ5W2